bitfinex-derivatives/quotes_SOLF0:USTF0_20260304
["timestamp","ask_amount","ask_price","bid_price","bid_amount"]
[1772661151848,3.3708472,92.55,92.436,151.402]
[1772661151849,3.43537099,92.576,92.531,3.43360113]
[1772661152250,3.43537099,92.566,92.52,3.3708472]
[1772661152552,3.43537099,92.559,92.518,3.43360113]
[1772661153252,9.72,92.556,92.518,3.43360113]
[1772661153454,13.15537099,92.556,92.518,3.43360113]
[1772661153950,3.43537099,92.552,92.506,3.43360113]
[1772661154353,3.43537099,92.549,92.506,3.43360113]
[1772661154547,3.43537099,92.549,92.49,3.3708472]
[1772661154548,3.43537099,92.549,92.491,3.43360113]
[1772661155154,3.43537099,92.543,92.501,3.43360113]
[1772661156350,3.43537099,92.559,92.513,3.43360113]
[1772661157351,9.72,92.558,92.513,3.43360113]
[1772661157546,0.06864091,92.545,92.513,3.43360113]
[1772661158555,3.5040119,92.545,92.501,3.43360113]
[1772661159149,3.43537099,92.545,92.501,13.15960113]
[1772661160052,3.43537099,92.545,92.502,3.43360113]
[1772661160455,3.43537099,92.545,92.506,3.43360113]
[1772661160758,13.15637099,92.545,92.506,3.43360113]
[1772661160956,3.43537099,92.544,92.506,3.43360113]
[1772661161557,9.721,92.542,92.506,3.43360113]
[1772661161756,13.15637099,92.542,92.506,3.43360113]
[1772661161958,9.722,92.538,92.495,9.726]
[1772661162159,3.43537099,92.537,92.495,13.15960113]
[1772661162356,0.06816318,92.533,92.495,13.15960113]
[1772661165357,0.06816318,92.533,92.496,3.43360113]
[1772661166563,0.06816318,92.533,92.5,3.3708472]
[1772661166960,9.722,92.532,92.5,3.3708472]
[1772661167261,3.43537099,92.532,92.496,3.43360113]
[1772661168363,9.723,92.526,92.496,3.43360113]
[1772661168566,3.43537099,92.532,92.496,3.43360113]
[1772661169159,13.5800601,92.53,92.496,3.43360113]
[1772661169465,3.8570601,92.529,92.487,9.727]
[1772661169865,3.8570601,92.529,92.487,13.55683531]
[1772661170160,3.8570601,92.529,92.488,3.82983531]
[1772661171067,3.8570601,92.529,92.49,9.727]
[1772661171868,3.8570601,92.527,92.488,3.82983531]
[1772661172367,9.723,92.526,92.488,13.55683531]
[1772661172763,9.723,92.526,92.488,9.727]
[1772661172968,9.79016318,92.533,92.491,3.82983531]
[1772661173569,9.722,92.533,92.491,3.82983531]
[1772661174372,9.722,92.533,92.493,3.82983531]
[1772661175568,0.06835294,92.522,92.493,3.82983531]
[1772661176071,0.06835294,92.522,92.494,9.726]
[1772661177271,16.62402371,92.555,92.497,3.82983531]
[1772661177469,3.8570601,92.557,92.53,3.36320328]
[1772661178374,9.719,92.566,92.53,3.36320328]
[1772661178576,9.719,92.566,92.523,13.55283531]
[1772661178767,9.72,92.56,92.523,13.55283531]
[1772661178968,9.72,92.56,92.523,3.82983531]
[1772661179274,3.36320328,92.57,92.523,3.82983531]
[1772661179275,3.8570601,92.559,92.523,3.82983531]
[1772661180471,9.72,92.557,92.523,3.82983531]
[1772661181270,3.8570601,92.556,92.492,3.82983531]
[1772661181476,3.8570601,92.539,92.492,3.82983531]
[1772661181878,9.722,92.538,92.492,3.82983531]
[1772661182078,3.8570601,92.539,92.501,3.82983531]
[1772661182276,9.72,92.554,92.511,3.82983531]
[1772661182478,3.8570601,92.559,92.511,3.82983531]
[1772661184085,9.72,92.559,92.53,3.36320328]
[1772661184379,9.72,92.559,92.526,0.06820137]
[1772661184981,3.8570601,92.559,92.526,0.06820137]
[1772661186382,9.721,92.546,92.526,0.06820137]
[1772661186778,3.8570601,92.559,92.526,0.06820137]
[1772661186979,9.72,92.556,92.526,3.89803668]
[1772661187482,9.72,92.556,92.526,3.82983531]
[1772661187682,9.721,92.55,92.514,3.82983531]
[1772661187883,3.8570601,92.549,92.507,9.725]
[1772661188381,3.8570601,92.549,92.507,13.55483531]
[1772661188582,3.8570601,92.549,92.51,3.36320328]
[1772661188783,3.8570601,92.549,92.51,7.19303859]
[1772661189484,9.721,92.546,92.51,7.19303859]
[1772661190985,9.721,92.546,92.511,3.82983531]
[1772661196087,3.8570601,92.549,92.512,9.724]
[1772661196787,3.8570601,92.549,92.521,0.0684689]
[1772661201490,9.721,92.548,92.521,0.0684689]
[1772661203089,3.68635709,92.547,92.521,0.0684689]
[1772661205186,3.68635709,92.543,92.5,7.1530633]
[1772661205392,3.68635709,92.539,92.489,3.78986002]
[1772661206295,3.68635709,92.539,92.481,3.77189593]
[1772661206491,3.96069081,92.524,92.483,9.728]
[1772661208694,3.96069081,92.524,92.483,13.49989593]
[1772661210186,0.06842429,92.513,92.483,13.49989593]
[1772661213293,0.06842429,92.513,92.486,13.49889593]
[1772661217992,0.06842429,92.513,92.488,9.727]
[1772661220699,3.96069081,92.524,92.488,9.727]
[1772661221499,3.96069081,92.524,92.488,13.49889593]
[1772661221704,3.36320328,92.52,92.477,3.77189593]
[1772661222008,3.96069081,92.519,92.477,3.77189593]
[1772661223004,3.96069081,92.509,92.461,3.77189593]
[1772661223507,3.96069081,92.509,92.472,9.729]
[1772661224008,3.96069081,92.509,92.473,3.77189593]
[1772661227107,9.725,92.508,92.473,3.77189593]
[1772661229414,13.34052919,92.508,92.473,3.77189593]
[1772661232713,13.34052919,92.508,92.47,3.364913]
[1772661232714,3.61552919,92.508,92.474,13.65184865]
[1772661232918,3.61552919,92.508,92.474,3.92384865]
[1772661242214,3.61552919,92.505,92.474,3.92384865]
[1772661242415,3.61552919,92.505,92.461,3.92384865]
[1772661243218,3.61552919,92.505,92.474,0.06823788]
[1772661243420,3.61552919,92.501,92.474,0.06823788]
[1772661249326,9.726,92.5,92.474,0.06823788]
[1772661249626,3.61552919,92.499,92.474,0.06823788]
[1772661250326,3.61552919,92.489,92.441,3.92384865]
[1772661250526,3.61552919,92.479,92.441,3.92384865]
[1772661250720,3.61552919,92.465,92.424,3.92384865]
[1772661250923,151.239,92.536,92.41,3.92384865]
[1772661250924,3.61552919,92.459,92.41,3.92384865]
[1772661251420,3.364913,92.46,92.411,3.92384865]
[1772661251624,3.61552919,92.464,92.411,3.92384865]
[1772661252427,3.61552919,92.459,92.412,3.92384865]
[1772661253424,3.61552919,92.457,92.412,3.92384865]
[1772661256527,9.729,92.468,92.431,3.92384865]
[1772661259127,13.41907454,92.468,92.431,3.92384865]
[1772661259923,3.69007454,92.467,92.417,3.89516718]
[1772661260224,3.69007454,92.458,92.411,3.89516718]
[1772661261128,9.73,92.456,92.413,9.735]
[1772661261329,9.73,92.456,92.414,3.89516718]
[1772661262734,9.73,92.456,92.42,3.364913]
[1772661263833,9.73,92.456,92.414,3.89516718]
[1772661264228,9.73,92.456,92.413,9.735]
[1772661264229,9.73,92.456,92.421,3.89516718]
[1772661264632,3.69007454,92.47,92.431,3.89516718]
[1772661264839,0.06864489,92.448,92.431,3.89516718]
[1772661266237,0.06864489,92.448,92.42,7.13241722]
[1772661266430,0.06864489,92.448,92.423,3.76750422]
[1772661267337,0.06864489,92.448,92.43,3.364913]
[1772661269042,0.06864489,92.448,92.424,9.734]
[1772661269741,0.06864489,92.448,92.43,9.733]
[1772661270641,0.06864489,92.448,92.424,3.76750422]
[1772661271544,3.92221564,92.448,92.412,3.76750422]
[1772661271742,3.85357075,92.439,92.385,3.76750422]
[1772661271943,3.85357075,92.429,92.376,3.76750422]
[1772661272142,3.85357075,92.429,92.38,3.364913]
[1772661272339,3.85357075,92.429,92.381,3.76750422]
[1772661272544,3.85357075,92.421,92.381,3.76750422]
[1772661272741,3.85357075,92.421,92.37,3.364913]
[1772661272942,3.85357075,92.419,92.37,7.13241722]
[1772661274446,3.85357075,92.418,92.37,7.13241722]
[1772661276350,9.735,92.417,92.371,3.76750422]
[1772661276641,3.85357075,92.416,92.371,3.76750422]
[1772661277945,3.85357075,92.399,92.347,3.76750422]
[1772661278247,3.85357075,92.389,92.347,3.76750422]
[1772661278750,3.364913,92.37,92.331,3.76750422]
[1772661278947,3.85357075,92.369,92.331,3.76750422]
[1772661280553,9.737,92.39,92.351,3.76750422]
[1772661281450,3.85357075,92.386,92.34,3.364913]
[1772661282353,3.85357075,92.386,92.339,3.76750422]
[1772661282354,9.739,92.376,92.339,3.76750422]
[1772661282549,9.739,92.376,92.287,19.497]
[1772661282550,3.85357075,92.369,92.32,3.364913]
[1772661284254,3.85357075,92.369,92.33,3.364913]
[1772661286451,3.85357075,92.369,92.321,3.76750422]
[1772661288756,3.85357075,92.369,92.33,3.364913]
[1772661290452,3.85357075,92.369,92.321,3.76750422]
[1772661292659,3.85357075,92.369,92.331,3.87168805]
[1772661293260,3.68440595,92.367,92.32,3.37517831]
[1772661293559,3.68440595,92.367,92.318,3.87168805]
[1772661294061,3.68440595,92.363,92.318,3.87168805]
[1772661294761,3.68440595,92.363,92.32,3.37517831]
[1772661295857,3.68440595,92.339,92.299,1.88436089]
[1772661296063,3.68440595,92.339,92.289,3.87168805]
[1772661296559,3.68440595,92.339,92.291,3.87168805]
[1772661296760,9.743,92.336,92.291,13.61968805]
[1772661296962,3.68440595,92.335,92.291,13.61968805]
[1772661297162,3.68440595,92.335,92.272,3.87168805]
[1772661297363,19.479,92.372,92.272,3.87168805]
[1772661297364,3.68440595,92.324,92.28,13.12417831]
[1772661297663,3.68440595,92.322,92.272,3.87168805]
[1772661297857,3.68440595,92.316,92.272,3.87168805]
[1772661298164,3.68440595,92.309,92.261,3.87168805]
[1772661298366,3.37517831,92.3,92.256,9.752]
[1772661298664,3.68440595,92.299,92.25,3.37517831]
[1772661298859,3.68440595,92.299,92.25,7.24686636]
[1772661299060,3.68440595,92.299,92.252,3.87168805]
[1772661299260,3.68440595,92.299,92.26,3.37517831]
[1772661300559,3.68440595,92.299,92.258,9.751]
[1772661300765,3.68440595,92.299,92.252,3.87168805]
[1772661301063,3.68440595,92.289,92.196,3.87168805]
[1772661301260,3.68440595,92.289,92.134,26.79912482]
[1772661301261,3.68440595,92.249,92.219,1.88590799]
[1772661301565,3.37517831,92.28,92.231,3.87168805]
[1772661301760,3.68440595,92.279,92.231,3.87168805]
[1772661302366,3.68440595,92.278,92.231,3.87168805]
[1772661302563,3.68440595,92.278,92.24,3.37517831]
[1772661302759,3.68440595,92.299,92.241,3.87168805]
[1772661302965,3.68440595,92.289,92.241,3.87168805]
[1772661304966,13.43240595,92.288,92.241,3.87168805]
[1772661305365,9.749,92.284,92.241,3.87168805]
[1772661305565,3.68440595,92.283,92.241,3.87168805]
[1772661306668,9.749,92.28,92.241,3.87168805]
[1772661306864,3.68440595,92.279,92.241,3.87168805]
[1772661307070,3.68440595,92.279,92.221,3.87168805]
[1772661308369,3.68440595,92.278,92.221,3.87168805]
[1772661308567,3.68440595,92.278,92.22,3.37517831]
[1772661308568,7.05958426,92.29,92.241,3.87168805]
[1772661308869,3.68440595,92.289,92.241,3.87168805]
[1772661309266,3.68440595,92.289,92.199,1.88666459]
[1772661309470,3.68440595,92.259,92.21,3.37517831]
[1772661309865,9.751,92.266,92.22,3.37517831]
[1772661310071,3.68440595,92.284,92.23,3.37517831]
[1772661311373,9.75,92.275,92.24,3.37517831]
[1772661312174,3.68440595,92.262,92.22,3.37517831]
[1772661312472,3.37517831,92.26,92.211,3.87168805]
[1772661312775,3.68440595,92.259,92.211,3.87168805]
[1772661312971,3.68440595,92.259,92.22,3.37517831]
[1772661313274,3.68440595,92.259,92.22,7.24686636]
[1772661314468,3.68440595,92.269,92.23,3.37517831]
[1772661314671,9.75,92.27,92.231,3.87168805]
[1772661314872,3.68440595,92.282,92.231,3.87168805]
[1772661315070,9.749,92.28,92.24,3.37517831]
[1772661315275,9.749,92.28,92.241,3.87168805]
[1772661315475,3.37517831,92.28,92.231,3.87168805]
[1772661316070,3.68440595,92.282,92.231,3.87168805]
[1772661316472,9.75,92.273,92.231,3.87168805]
[1772661318973,9.75,92.273,92.24,3.37517831]
[1772661319369,9.75,92.273,92.231,3.87168805]
[1772661320268,19.492,92.31,92.199,1.88666459]
[1772661320269,3.66547544,92.268,92.214,3.9394107]
[1772661320470,3.66547544,92.249,92.2,7.31458901]
[1772661320679,3.66547544,92.249,92.2,3.9394107]
[1772661320879,3.37517831,92.23,92.186,3.9394107]
[1772661321278,9.754,92.238,92.193,3.9394107]
[1772661321476,3.66547544,92.249,92.201,3.9394107]
[1772661322576,9.753,92.246,92.201,3.9394107]
[1772661323878,9.753,92.246,92.21,3.37517831]
[1772661324076,3.66547544,92.249,92.21,3.37517831]
[1772661324577,3.66547544,92.249,92.201,3.9394107]
[1772661325375,9.753,92.247,92.201,3.9394107]
[1772661326680,9.753,92.247,92.169,1.88699707]
[1772661326681,9.753,92.247,92.21,7.27627676]
[1772661327482,3.8145287,92.261,92.22,3.37517831]
[1772661327779,3.8145287,92.261,92.212,3.90109845]
[1772661328279,9.751,92.26,92.214,13.65709845]
[1772661328678,9.751,92.257,92.22,3.37517831]
[1772661328879,3.8145287,92.259,92.215,3.90109845]
[1772661330381,9.752,92.249,92.215,3.90109845]
[1772661330683,3.37517831,92.24,92.19,3.37517831]
[1772661330984,3.37517831,92.24,92.188,3.90109845]
[1772661330985,3.8145287,92.239,92.188,3.90109845]
[1772661331478,3.8145287,92.239,92.19,3.37517831]
[1772661331682,3.8145287,92.239,92.191,3.90109845]
[1772661331683,9.754,92.236,92.191,3.90109845]
[1772661333184,3.8145287,92.224,92.177,3.90109845]
[1772661333780,9.756,92.213,92.177,3.90109845]
[1772661334286,3.8145287,92.219,92.161,3.90109845]
[1772661334685,3.37517831,92.21,92.161,3.90109845]
[1772661335388,9.757,92.206,92.161,3.90109845]
[1772661336089,9.757,92.206,92.165,3.90109845]
[1772661337589,9.757,92.206,92.17,3.37517831]
[1772661339490,9.757,92.206,92.125,19.531]
[1772661339491,3.8145287,92.197,92.15,3.37517831]
[1772661339792,3.8145287,92.21,92.161,3.90109845]
[1772661340085,3.8145287,92.209,92.161,3.90109845]
[1772661341388,9.758,92.197,92.161,3.90109845]
[1772661341589,7.18970701,92.19,92.14,3.90109845]
[1772661341786,3.8145287,92.19,92.151,3.90109845]
[1772661344295,3.8145287,92.19,92.14,3.37517831]
[1772661344594,9.759,92.188,92.143,3.90109845]
[1772661345191,9.759,92.188,92.145,9.763]
[1772661347099,3.8145287,92.187,92.14,3.37517831]
[1772661347394,3.8145287,92.187,92.13,7.27627676]
[1772661347994,9.76,92.177,92.13,17.04127676]
[1772661348195,9.76,92.177,92.131,3.90109845]
[1772661348899,9.759,92.185,92.141,3.72072551]
[1772661349293,3.8145287,92.187,92.141,3.72072551]
[1772661349997,13.5735287,92.187,92.142,13.48472551]
[1772661350296,13.5735287,92.187,92.143,3.72072551]
[1772661351093,9.76,92.181,92.143,3.72072551]
[1772661351298,9.76,92.181,92.088,19.96545124]
[1772661351299,3.8145287,92.187,92.13,3.38840288]
[1772661352399,9.761,92.166,92.13,3.38840288]
[1772661352600,9.761,92.166,92.128,3.72072551]
[1772661353198,9.761,92.166,92.13,3.38840288]
[1772661354401,3.82073526,92.172,92.13,3.38840288]
[1772661355503,3.82073526,92.17,92.13,3.38840288]
[1772661356609,9.761,92.167,92.13,3.38840288]
[1772661358501,3.82073526,92.163,92.13,3.38840288]
[1772661359305,3.82073526,92.161,92.111,3.72072551]
[1772661360397,3.82073526,92.159,92.111,3.72072551]
[1772661360598,3.82073526,92.159,92.12,3.38840288]
[1772661361506,3.82073526,92.159,92.13,3.38840288]
[1772661362208,9.761,92.164,92.13,3.38840288]
[1772661362903,3.82073526,92.209,92.15,3.38840288]
[1772661363206,3.82073526,92.209,92.16,3.38840288]
[1772661363809,3.82073526,92.2,92.16,3.38840288]
[1772661364508,3.82073526,92.197,92.151,3.72072551]
[1772661364710,3.82073526,92.197,92.16,3.38840288]
[1772661364906,3.82073526,92.197,92.151,3.72072551]
[1772661365509,9.758,92.196,92.16,3.38840288]
[1772661365710,3.82073526,92.197,92.161,9.762]
[1772661365912,3.82073526,92.212,92.17,3.38840288]
[1772661366514,9.756,92.211,92.17,3.38840288]
[1772661367113,13.57673526,92.211,92.17,3.38840288]
[1772661367311,9.757,92.207,92.17,3.38840288]
[1772661367511,13.57773526,92.207,92.17,3.38840288]
[1772661367710,3.82073526,92.206,92.17,3.38840288]
[1772661367914,3.82073526,92.206,92.162,3.72072551]
[1772661368513,9.757,92.205,92.163,9.761]
[1772661368813,9.757,92.205,92.162,3.72072551]
[1772661369716,9.756,92.214,92.18,3.38840288]
[1772661370515,9.757,92.208,92.163,3.72072551]
[1772661370714,9.757,92.208,92.17,3.38840288]
[1772661371411,9.757,92.208,92.17,13.14940288]
[1772661373312,9.757,92.208,92.164,3.72072551]
[1772661373519,9.757,92.208,92.17,3.38840288]
[1772661373718,3.82073526,92.214,92.17,3.38840288]
[1772661374418,3.82073526,92.214,92.164,3.72072551]
[1772661375519,3.82073526,92.211,92.171,9.76]
[1772661375713,3.82073526,92.211,92.164,3.72072551]
[1772661376218,3.82073526,92.209,92.15,7.10912839]
[1772661377514,3.38840288,92.21,92.153,9.762]
[1772661377515,9.758,92.194,92.153,9.762]
[1772661378322,3.82073526,92.198,92.16,9.762]
[1772661378820,9.758,92.196,92.153,9.762]
[1772661379120,9.758,92.196,92.16,3.38840288]
[1772661381221,3.94901216,92.193,92.14,3.62730754]
[1772661381417,3.94901216,92.193,92.141,3.62730754]
[1772661382426,9.759,92.182,92.141,3.62730754]
[1772661382716,3.94901216,92.181,92.141,3.62730754]
[1772661383424,9.76,92.178,92.141,3.62730754]
[1772661385122,3.94901216,92.181,92.143,3.62730754]
[1772661385322,3.94901216,92.181,92.15,3.38840288]
[1772661385524,3.94901216,92.181,92.143,3.62730754]
[1772661386124,13.61777898,92.18,92.143,3.62730754]
[1772661392228,3.85777898,92.219,92.17,3.38840288]
[1772661392625,3.85777898,92.209,92.18,3.38840288]
[1772661393421,3.85777898,92.209,92.17,3.38840288]
[1772661394132,3.85777898,92.197,92.16,3.38840288]
[1772661395529,3.85777898,92.197,92.16,13.15040288]
[1772661396720,9.757,92.206,92.161,3.95763994]
[1772661396929,3.85777898,92.205,92.17,3.38840288]
[1772661397423,3.85777898,92.205,92.161,3.95763994]
[1772661399631,3.85777898,92.205,92.162,13.71863994]
[1772661401230,3.85777898,92.205,92.163,3.95763994]
[1772661402037,3.85777898,92.201,92.163,3.95763994]
[1772661404438,9.758,92.199,92.163,3.95763994]
[1772661406040,3.38840288,92.22,92.163,3.95763994]
[1772661406041,9.758,92.195,92.163,3.95763994]
[1772661408142,3.85777898,92.198,92.163,3.95763994]
[1772661408842,3.83005213,92.21,92.164,3.91992435]
[1772661409036,3.83005213,92.21,92.129,19.53]
[1772661409037,3.83005213,92.21,92.171,3.91992435]
[1772661412146,3.83005213,92.21,92.18,3.38840288]
[1772661412346,3.83005213,92.21,92.173,3.91992435]
[1772661414842,3.83005213,92.21,92.18,3.38625116]
[1772661417138,3.83005213,92.22,92.18,7.30617551]
[1772661418046,3.83005213,92.22,92.18,3.91992435]
[1772661418443,3.83005213,92.219,92.17,3.38625116]
[1772661418747,3.83005213,92.219,92.171,3.91992435]
[1772661419551,9.756,92.212,92.173,9.76]
[1772661419747,3.83005213,92.211,92.17,3.38625116]
[1772661419947,3.83005213,92.198,92.16,9.762]
[1772661420847,3.83005213,92.189,92.146,3.91992435]
[1772661421151,3.83005213,92.189,92.134,3.91992435]
[1772661422443,3.83005213,92.179,92.138,9.764]
[1772661423348,3.83005213,92.179,92.14,3.38625116]
[1772661425751,9.759,92.188,92.109,19.535]
[1772661425752,9.759,92.188,92.15,3.38625116]
[1772661426145,9.759,92.188,92.15,7.30617551]
[1772661427351,9.759,92.188,92.15,3.91992435]
[1772661427650,9.759,92.186,92.15,3.91992435]
[1772661428047,3.83005213,92.185,92.141,9.764]
[1772661428750,3.83005213,92.185,92.143,9.763]
[1772661429052,3.83005213,92.185,92.144,3.91992435]
[1772661430553,3.83005213,92.185,92.145,9.763]
[1772661431648,3.83005213,92.185,92.146,3.91992435]
[1772661431853,3.83005213,92.183,92.14,3.38625116]
[1772661432255,3.83005213,92.169,92.122,3.91992435]
[1772661433148,3.83005213,92.169,92.13,3.38625116]
[1772661433353,3.83005213,92.169,92.13,7.30617551]
[1772661434054,3.83005213,92.169,92.131,3.91992435]
[1772661434258,3.83005213,92.193,92.141,3.91992435]
[1772661434461,3.83005213,92.193,92.15,3.38625116]
[1772661435460,3.83005213,92.193,92.15,9.763]
[1772661435855,3.83005213,92.193,92.141,3.91992435]
[1772661436260,3.83005213,92.191,92.149,9.763]
[1772661437361,3.83005213,92.188,92.149,9.763]
[1772661438561,3.83005213,92.188,92.141,3.91992435]
[1772661438562,3.83005213,92.188,92.155,9.762]
[1772661439263,3.83005213,92.188,92.153,4.0675193]
[1772661439861,9.759,92.186,92.153,4.0675193]
[1772661440958,9.76,92.18,92.14,4.0675193]
[1772661441559,9.76,92.18,92.14,7.45377046]
[1772661441959,9.76,92.18,92.14,17.21777046]
[1772661443268,9.759,92.187,92.143,4.0675193]
[1772661444269,9.759,92.187,92.145,4.0675193]
[1772661445671,9.759,92.187,92.146,9.763]
[1772661445871,9.759,92.187,92.146,13.59635868]
[1772661446271,3.83005213,92.188,92.147,3.83335868]
[1772661446573,3.83005213,92.188,92.149,9.763]
[1772661448066,3.83005213,92.188,92.149,13.59635868]
[1772661448372,3.83005213,92.188,92.152,9.762]
[1772661451575,3.83005213,92.188,92.153,3.83335868]
[1772661454274,10.06949849,92.23,92.16,3.83335868]
[1772661454275,16.59958005,92.219,92.16,3.83335868]
[1772661454583,3.69179116,92.218,92.171,3.83335868]
[1772661454874,3.69179116,92.218,92.177,3.83335868]
[1772661455979,3.69179116,92.218,92.178,9.76]
[1772661457677,3.69179116,92.252,92.191,3.83335868]
[1772661457880,3.69179116,92.252,92.159,19.524]
[1772661457881,3.69179116,92.252,92.201,3.83335868]
[1772661458883,3.69179116,92.249,92.202,13.59035868]
[1772661459184,3.69179116,92.249,92.203,3.83335868]
[1772661460376,3.69179116,92.249,92.21,3.38625116]
[1772661461984,9.751,92.259,92.221,3.83335868]
[1772661462886,13.44279116,92.259,92.221,3.83335868]
[1772661465389,3.69179116,92.275,92.231,3.83335868]
[1772661465682,3.69179116,92.275,92.24,3.38625116]
[1772661465879,3.69179116,92.299,92.241,3.83335868]
[1772661466080,3.69179116,92.299,92.26,3.38625116]
[1772661466284,3.69179116,92.299,92.187,19.518]
[1772661466488,3.69179116,92.289,92.231,3.83335868]
[1772661467080,3.69179116,92.303,92.26,3.38625116]
[1772661467280,3.69179116,92.303,92.251,3.83335868]
[1772661468087,3.69179116,92.291,92.251,3.83335868]
[1772661468286,3.69179116,92.291,92.125,151.913]
[1772661468287,3.69179116,92.289,92.237,3.83335868]
[1772661468490,3.69179116,92.279,92.224,3.83335868]
[1772661469389,9.751,92.265,92.224,3.83335868]
[1772661470892,3.67075344,92.274,92.24,3.38625116]
[1772661471084,3.67075344,92.274,92.231,3.89488447]
[1772661473596,3.67075344,92.27,92.231,3.89488447]
[1772661474397,9.75,92.268,92.231,3.89488447]
[1772661477899,3.67075344,92.259,92.206,13.65188447]
[1772661478100,3.67075344,92.259,92.21,3.3818805]
[1772661478600,3.67075344,92.259,92.21,7.27676497]
[1772661479402,9.752,92.255,92.21,7.27676497]
[1772661479701,3.67075344,92.254,92.21,7.27676497]
[1772661480300,9.752,92.252,92.21,7.27676497]
[1772661481999,13.42275344,92.252,92.21,7.27676497]
[1772661482596,13.42275344,92.252,92.211,3.89488447]
[1772661482800,13.42275344,92.252,92.22,3.3818805]
[1772661483601,3.67075344,92.289,92.24,3.3818805]
[1772661483904,3.67075344,92.289,92.25,3.3818805]
[1772661484801,3.67075344,92.259,92.21,7.27676497]
[1772661485007,3.67075344,92.259,92.211,3.89488447]
[1772661485305,3.67075344,92.246,92.201,9.757]
[1772661486303,3.67075344,92.246,92.201,13.65188447]
[1772661486602,3.67075344,92.246,92.206,9.757]
[1772661490702,3.67075344,92.244,92.202,3.89488447]
[1772661491807,3.67075344,92.244,92.203,9.757]
[1772661492005,3.67075344,92.259,92.21,3.3818805]
[1772661492808,3.67075344,92.254,92.21,3.3818805]
[1772661493506,3.67075344,92.254,92.206,3.89488447]
[1772661493906,13.42275344,92.252,92.209,9.756]
[1772661494104,13.42275344,92.252,92.21,3.3818805]
[1772661494307,13.42275344,92.252,92.21,7.27676497]
[1772661496308,13.42275344,92.25,92.21,7.27676497]
[1772661496503,3.67075344,92.249,92.21,3.89488447]
[1772661499205,3.67075344,92.249,92.21,7.27676497]
[1772661501814,13.70456202,92.247,92.21,3.89488447]
[1772661502008,3.95156202,92.246,92.21,3.89488447]
[1772661504516,3.95156202,92.246,92.212,13.52562546]
[1772661504814,3.95156202,92.257,92.213,3.76962546]
[1772661505811,3.95156202,92.257,92.216,3.85644173]
[1772661507415,3.95156202,92.257,92.221,9.755]
[1772661507915,3.6850103,92.254,92.216,3.85644173]
[1772661508316,3.6850103,92.254,92.201,3.85644173]
[1772661509610,3.6850103,92.252,92.212,3.85644173]
[1772661512119,3.6850103,92.278,92.221,3.85644173]
[1772661513418,9.749,92.276,92.222,9.755]
[1772661513618,3.6850103,92.275,92.223,3.85644173]
[1772661514124,3.6850103,92.272,92.226,3.85644173]
[1772661521023,9.75,92.271,92.226,3.85644173]
[1772661523421,3.6850103,92.272,92.231,3.85644173]
[1772661523627,3.6850103,92.299,92.251,3.85644173]
[1772661525623,9.747,92.297,92.251,3.85644173]
[1772661528824,9.747,92.297,92.254,3.92204104]
[1772661529131,9.747,92.297,92.26,3.3818805]
[1772661529424,3.8499446,92.319,92.27,3.3818805]
[1772661529627,3.8499446,92.319,92.271,3.92204104]
[1772661530530,3.8499446,92.316,92.271,3.92204104]
[1772661531024,3.8499446,92.316,92.275,9.75]
[1772661531231,3.8499446,92.335,92.291,3.92204104]
[1772661531929,3.8499446,92.335,92.284,3.92204104]
[1772661532232,3.8499446,92.335,92.29,3.3818805]
[1772661532427,3.8499446,92.335,92.29,3.37785669]
[1772661532632,3.8499446,92.334,92.286,3.92204104]
[1772661533331,3.8499446,92.334,92.29,3.37785669]
[1772661533630,3.8499446,92.334,92.3,3.37785669]
[1772661534625,3.8499446,92.332,92.272,3.92204104]
[1772661534931,3.8499446,92.319,92.272,3.92204104]
[1772661535131,3.37785669,92.32,92.267,9.75]
[1772661535132,3.8499446,92.316,92.267,9.75]
[1772661535329,3.8499446,92.309,92.267,9.75]
[1772661537630,3.8499446,92.309,92.275,9.75]
[1772661538034,3.8499446,92.309,92.27,3.37785669]
[1772661540932,19.481,92.362,92.22,19.511]
[1772661540933,3.8499446,92.299,92.25,3.37785669]
[1772661541537,3.8499446,92.299,92.251,3.92204104]
[1772661542334,3.8499446,92.299,92.266,9.75]
[1772661542637,3.8499446,92.299,92.26,3.37785669]
[1772661543636,3.8499446,92.299,92.261,3.92204104]
[1772661543935,3.8499446,92.317,92.27,3.37785669]
[1772661544334,3.8499446,92.317,92.272,9.75]
[1772661544538,3.8499446,92.317,92.273,3.92204104]
[1772661544738,3.8499446,92.317,92.28,3.37785669]
[1772661544938,3.8499446,92.317,92.273,3.92204104]
[1772661545539,3.8499446,92.317,92.277,9.749]